[Event "9th RTU Open 2019"]
[Site "Riga"]
[Date "2019.08.08"]
[Round "6.16"]
[White "Svane, Rasmus"]
[Black "Keinanen, Toivo"]
[Result "1/2-1/2"]
[ECO "A14"]
[WhiteElo "2615"]
[BlackElo "2386"]
[Annotator "ChessBase"]
[PlyCount "102"]
[EventDate "2019.08.05"]
[EventType "swiss"]
[EventCountry "LAT"]
[SourceTitle "playchess.com"]
[Source "ChessBase"]
[SourceQuality "1"]
[TimeControl "5400+30"]

1. Nf3 {[%emt 0:00:00]} d5 {[%emt 0:01:17]} 2. g3 {[%emt 0:00:00]} Nf6 {[%emt 0:00:02]} 3. Bg2 {[%emt 0:00:02]} e6 {[%emt 0:00:02]} 4. O-O {[%emt 0:00:15]} Be7 {[%emt 0:00:01]} 5. c4 {[%emt 0:00:43]} O-O {[%emt 0:00:43]} 6. b3 {[%emt 0:04:14]} c5 {[%emt 0:03:17]} 7. Bb2 {[%emt 0:04:10]} Nc6 {[%emt 0:01:16]} 8. cxd5 {[%emt 0:01:53]} Nxd5 {[%emt 0:02:45]} 9. d4 {[%emt 0:00:19]} cxd4 {[%emt 0:17:52]} 10. Nxd4 {[%emt 0:00:05]} Nxd4 {[%emt 0:06:13]} 11. Qxd4 {[%emt 0:08:59]} Bf6 {[%emt 0:01:23]} 12. Qd2 {[%emt 0:00:07]} Bd7 {[%emt 0:05:06]} 13. Na3 {[%emt 0:23:56]} Bc6 {[%emt 0:03:23]} 14. Nc4 {[%emt 0:05:41]} Ne7 {[%emt 0:15:39]} 15. Bxf6 {[%emt 0:14:39]} Qxd2 {[%emt 0:01:36]} 16. Nxd2 {[%emt 0:00:17]} gxf6 {[%emt 0:00:12]} 17. Rfd1 {[%emt 0:09:44]} Rfd8 {[%emt 0:04:27]} 18. Bxc6 {[%emt 0:01:00]} Nxc6 {[%emt 0:00:10]} 19. Ne4 {[%emt 0:00:16]} f5 {[%emt 0:03:52]} 20. Nc5 {[%emt 0:00:07]} b6 {[%emt 0:01:43]} 21. Nb7 {[%emt 0:03:54]} Rxd1+ {[%emt 0:03:23]} 22. Rxd1 {[%emt 0:00:02]} Rc8 {[%emt 0:00:41]} 23. Rc1 {[%emt 0:13:24]} Ne7 {[%emt 0:01:54]} 24. Rxc8+ {[%emt 0:00:05]} Nxc8 {[%emt 0:00:04]} 25. Kg2 {[%emt 0:02:09]} Kf8 {[%emt 0:02:20]} 26. Kh3 {[%emt 0:00:48]} Kg7 {[%emt 0:06:11]} 27. g4 {[%emt 0:00:13]} Kg6 {[%emt 0:02:21]} 28. Kh4 {[%emt 0:01:10]} fxg4 {[%emt 0:02:19]} 29. Kxg4 {[%emt 0:00:05]} f5+ {[%emt 0:00:10]} 30. Kh4 {[%emt 0:00:53]} Ne7 {[%emt 0:02:07]} 31. Nd6 {[%emt 0:01:12]} Nd5 {[%emt 0:00:48]} 32. a4 {[%emt 0:00:34]} a6 {[%emt 0:05:44]} 33. Nc4 {[%emt 0:00:48]} Kf6 {[%emt 0:02:06]} 34. Kh5 {[%emt 0:02:37]} b5 {[%emt 0:00:47]} 35. axb5 {[%emt 0:00:04]} axb5 {[%emt 0:00:01]} 36. Na3 {[%emt 0:00:29]} b4 {[%emt 0:01:12]} 37. Nc2 {[%emt 0:00:05]} Nf4+ {[%emt 0:00:57]} 38. Kh6 {[%emt 0:00:04]} Nxe2 {[%emt 0:00:05]} 39. h4 {[%emt 0:01:07]} Nc1 {[%emt 0:02:27]} 40. Nxb4 {[%emt 0:00:08]} Nxb3 {[%emt 0:00:01]} 41. Kxh7 {[%emt 0:00:10]} Nd2 {[%emt 0:01:18]} 42. h5 {[%emt 0:01:12]} Nf3 {[%emt 0:02:08]} 43. Nd3 {[%emt 0:01:55]} e5 {[%emt 0:00:38]} 44. Nb4 {[%emt 0:00:01]} Ng5+ {[%emt 0:00:22]} 45. Kg8 {[%emt 0:00:12]} e4 {[%emt 0:00:18]} 46. Nd5+ {[%emt 0:01:31]} Ke5 {[%emt 0:00:11]} 47. Nc3 {[%emt 0:00:01]} f4 {[%emt 0:01:14]} 48. h6 {[%emt 0:00:04]} Kf5 {[%emt 0:00:35]} 49. Kg7 {[%emt 0:01:53]} Ne6+ {[%emt 0:00:09]} 50. Kg8 {[%emt 0:00:40]} Ng5 51. Ne2 {[%emt 0:00:57]} Kg6 {[%emt 0:00:58]} 1/2-1/2

[Event "9th RTU Open 2019"]
[Site "Riga"]
[Date "2019.08.08"]
[Round "6.17"]
[White "Tari, Aryan"]
[Black "Nguyen, Piotr"]
[Result "1-0"]
[ECO "B36"]
[WhiteElo "2620"]
[BlackElo "2420"]
[Annotator "ChessBase"]
[PlyCount "65"]
[EventDate "2019.08.05"]
[EventType "swiss"]
[EventCountry "LAT"]
[SourceTitle "playchess.com"]
[Source "ChessBase"]
[SourceQuality "1"]
[TimeControl "5400+30"]

1. e4 {[%emt 0:00:00]} c5 {[%emt 0:00:00]} 2. Nf3 {[%emt 0:00:00]} g6 {[%emt 0:00:00]} 3. c4 {[%emt 0:00:20]} Nc6 {[%emt 0:00:00]} 4. d4 {[%emt 0:00:05]} cxd4 {[%emt 0:00:05]} 5. Nxd4 {[%emt 0:00:04]} Nf6 {[%emt 0:00:17]} 6. Nc3 {[%emt 0:00:09]} d6 {[%emt 0:00:05]} 7. f3 {[%emt 0:00:13]} Nxd4 {[%emt 0:01:06]} 8. Qxd4 {[%emt 0:00:07]} Bg7 {[%emt 0:00:03]} 9. Be3 {[%emt 0:00:07]} O-O {[%emt 0:00:09]} 10. Qd2 {[%emt 0:00:12]} a5 {[%emt 0:01:28]} 11. Na4 {[%emt 0:00:09]} Be6 {[%emt 0:01:46]} 12. Nb6 {[%emt 0:00:12]} Rb8 {[%emt 0:00:18]} 13. Qxa5 {[%emt 0:01:03]} Nd7 {[%emt 0:00:05]} 14. Qb4 {[%emt 0:00:52]} f5 {[%emt 0:02:00]} 15. exf5 {[%emt 0:23:16]} Rxf5 {[%emt 0:06:00]} 16. O-O-O {[%emt 0:00:55]} Nxb6 {[%emt 0:31:17]} 17. Bxb6 {[%emt 0:03:44]} Qc8 {[%emt 0:00:08]} 18. Kb1 {[%emt 0:03:07]} Ra8 {[%emt 0:03:12]} 19. Bd3 {[%emt 0:07:28]} Rf4 {[%emt 0:06:14]} 20. Rc1 {[%emt 0:01:58]} Bf5 {[%emt 0:14:01]} 21. Qb3 {[%emt 0:04:25]} Qe6 {[%emt 0:19:08]} 22. Rhe1 {[%emt 0:02:03]} Bxd3+ {[%emt 0:02:18]} 23. Qxd3 {[%emt 0:00:07]} Qf7 {[%emt 0:00:06]} 24. Re4 {[%emt 0:04:46]} Be5 {[%emt 0:01:31]} 25. Bd4 {[%emt 0:03:31]} Rxe4 {[%emt 0:04:30]} 26. Qxe4 {[%emt 0:00:07]} Bxd4 {[%emt 0:00:19]} 27. Qxd4 {[%emt 0:00:02]} Qf5+ {[%emt 0:00:09]} 28. Ka1 {[%emt 0:01:02]} Kf7 {[%emt 0:01:38]} 29. a3 {[%emt 0:01:22]} Rc8 {[%emt 0:02:35]} 30. Re1 {[%emt 0:00:24]} g5 {[%emt 0:01:02]} 31. Qb6 {[%emt 0:02:56]} Qd7 {[%emt 0:01:09]} 32. Qe3 {[%emt 0:00:11]} Rc5 {[%emt 0:00:20]} 33. Qe4 {[%emt 0:00:13]} 1-0

[Event "9th RTU Open 2019"]
[Site "Riga"]
[Date "2019.08.08"]
[Round "6.18"]
[White "Krivonosov, Oleg"]
[Black "Bauer, Christian"]
[Result "1/2-1/2"]
[ECO "A04"]
[WhiteElo "2416"]
[BlackElo "2646"]
[Annotator "ChessBase"]
[PlyCount "43"]
[EventDate "2019.08.05"]
[EventType "swiss"]
[EventCountry "LAT"]
[SourceTitle "playchess.com"]
[Source "ChessBase"]
[SourceQuality "1"]
[TimeControl "5400+30"]

1. Nf3 {[%emt 0:00:00]} f5 {[%emt 0:00:31]} 2. g3 {[%emt 0:00:00]} Nf6 {[%emt 0:00:08]} 3. Bg2 {[%emt 0:00:00]} d6 {[%emt 0:00:06]} 4. d4 {[%emt 0:00:03]} h6 {[%emt 0:00:07]} 5. c4 {[%emt 0:01:04]} g5 {[%emt 0:00:48]} 6. Nc3 {[%emt 0:01:43]} Bg7 {[%emt 0:00:55]} 7. O-O {[%emt 0:00:27]} O-O {[%emt 0:00:32]} 8. d5 {[%emt 0:05:24]} c5 {[%emt 0:11:10]} 9. h4 {[%emt 0:07:00]} g4 {[%emt 0:02:01]} 10. Ne1 {[%emt 0:01:30]} Nbd7 {[%emt 0:07:56]} 11. Nd3 {[%emt 0:10:29]} Nb6 {[%emt 0:07:58]} 12. Qb3 {[%emt 0:07:01]} e5 {[%emt 0:01:56]} 13. dxe6 {[%emt 0:00:19]} Bxe6 {[%emt 0:00:06]} 14. Nf4 {[%emt 0:01:07]} Bxc4 {[%emt 0:00:54]} 15. Qc2 {[%emt 0:00:10]} Qd7 {[%emt 0:02:27]} 16. Be3 {[%emt 0:01:56]} Bf7 {[%emt 0:12:30]} 17. Rad1 {[%emt 0:02:23]} Rac8 {[%emt 0:00:24]} 18. Nfd5 {[%emt 0:05:44]} Nbxd5 {[%emt 0:01:16]} 19. Nxd5 {[%emt 0:00:15]} Nxd5 {[%emt 0:07:26]} 20. Bxd5 {[%emt 0:00:15]} Kh7 {[%emt 0:03:20]} 21. Bf4 {[%emt 0:09:03]} b5 {[%emt 0:11:18]} 22. Bxf7 {[%emt 0:06:07]} 1/2-1/2

[Event "9th RTU Open 2019"]
[Site "Riga"]
[Date "2019.08.08"]
[Round "6.19"]
[White "Tania, Sachdev"]
[Black "Smirin, Ilia"]
[Result "1/2-1/2"]
[ECO "A21"]
[WhiteElo "2401"]
[BlackElo "2594"]
[Annotator "ChessBase"]
[PlyCount "72"]
[EventDate "2019.08.05"]
[EventType "swiss"]
[EventCountry "LAT"]
[SourceTitle "playchess.com"]
[Source "ChessBase"]
[SourceQuality "1"]
[TimeControl "5400+30"]

1. d4 {[%emt 0:00:00]} d6 {[%emt 0:06:07]} 2. c4 {[%emt 0:00:34]} e5 {[%emt 0:00:34]} 3. Nc3 {[%emt 0:00:03]} exd4 {[%emt 0:00:20]} 4. Qxd4 {[%emt 0:00:04]} Nf6 {[%emt 0:00:06]} 5. b3 {[%emt 0:00:42]} Nc6 {[%emt 0:01:54]} 6. Qd2 {[%emt 0:00:06]} Be6 {[%emt 0:02:11]} 7. e4 {[%emt 0:00:09]} g6 {[%emt 0:01:02]} 8. Bb2 {[%emt 0:00:29]} Bg7 {[%emt 0:00:06]} 9. Bd3 {[%emt 0:01:25]} O-O {[%emt 0:02:47]} 10. Nge2 {[%emt 0:00:36]} Ng4 {[%emt 0:00:55]} 11. O-O {[%emt 0:28:36]} Qh4 {[%emt 0:14:31]} 12. h3 {[%emt 0:00:03]} Nge5 {[%emt 0:00:07]} 13. f4 {[%emt 0:01:13]} Nxd3 {[%emt 0:06:32]} 14. Qxd3 {[%emt 0:00:05]} f5 {[%emt 0:00:28]} 15. Qd2 {[%emt 0:03:24]} Rae8 {[%emt 0:02:04]} 16. Nd5 {[%emt 0:08:51]} Bxb2 {[%emt 0:04:41]} 17. Qxb2 {[%emt 0:00:20]} Bxd5 {[%emt 0:04:53]} 18. exd5 {[%emt 0:00:43]} Nb4 {[%emt 0:08:39]} 19. Qd2 {[%emt 0:07:56]} Na6 {[%emt 0:01:09]} 20. Nd4 {[%emt 0:05:26]} Nc5 {[%emt 0:00:06]} 21. Ne6 {[%emt 0:11:33]} Nxe6 {[%emt 0:01:20]} 22. dxe6 {[%emt 0:00:03]} Rxe6 {[%emt 0:02:05]} 23. Qd5 {[%emt 0:00:06]} Rfe8 {[%emt 0:02:32]} 24. Rae1 {[%emt 0:02:57]} Qf6 {[%emt 0:01:46]} 25. Rxe6 {[%emt 0:00:14]} Qxe6 {[%emt 0:00:11]} 26. Qxb7 {[%emt 0:00:06]} Qe3+ {[%emt 0:00:17]} 27. Kh2 {[%emt 0:00:26]} Qb6 {[%emt 0:01:08]} 28. Qd5+ {[%emt 0:03:15]} Kg7 {[%emt 0:00:06]} 29. c5 {[%emt 0:02:24]} Qb4 {[%emt 0:00:56]} 30. cxd6 {[%emt 0:04:37]} cxd6 {[%emt 0:00:05]} 31. a3 {[%emt 0:04:33]} Qxa3 {[%emt 0:01:08]} 32. Qd4+ {[%emt 0:00:54]} Kh6 {[%emt 0:01:29]} 33. Ra1 {[%emt 0:00:51]} Qc5 {[%emt 0:01:50]} 34. Qxc5 {[%emt 0:00:18]} dxc5 {[%emt 0:00:10]} 35. Rxa7 {[%emt 0:00:04]} Rb8 {[%emt 0:00:43]} 36. Ra5 {[%emt 0:00:55]} Rxb3 {[%emt 0:00:09]} 1/2-1/2

[Event "9th RTU Open 2019"]
[Site "Riga"]
[Date "2019.08.08"]
[Round "6.20"]
[White "Wagner, Dennis"]
[Black "D`Costa, Lorin"]
[Result "1-0"]
[ECO "E52"]
[WhiteElo "2579"]
[BlackElo "2396"]
[Annotator "ChessBase"]
[PlyCount "91"]
[EventDate "2019.08.05"]
[EventType "swiss"]
[EventCountry "LAT"]
[SourceTitle "playchess.com"]
[Source "ChessBase"]
[SourceQuality "1"]
[TimeControl "5400+30"]

1. d4 {[%emt 0:00:42]} Nf6 {[%emt 0:01:49]} 2. c4 {[%emt 0:00:07]} e6 {[%emt 0:00:35]} 3. Nc3 {[%emt 0:02:07]} Bb4 {[%emt 0:00:32]} 4. e3 {[%emt 0:00:06]} O-O {[%emt 0:01:53]} 5. Bd2 {[%emt 0:00:06]} b6 {[%emt 0:02:25]} 6. Nf3 {[%emt 0:01:46]} Bb7 {[%emt 0:00:59]} 7. Bd3 {[%emt 0:00:08]} d5 {[%emt 0:12:20]} 8. cxd5 {[%emt 0:00:47]} exd5 {[%emt 0:00:22]} 9. O-O {[%emt 0:00:29]} Nbd7 {[%emt 0:02:40]} 10. Rc1 {[%emt 0:00:31]} a6 {[%emt 0:08:58]} 11. Ne5 {[%emt 0:00:15]} Nxe5 {[%emt 0:03:11]} 12. dxe5 {[%emt 0:00:50]} Bxc3 {[%emt 0:08:25]} 13. Bxc3 {[%emt 0:02:01]} Ne4 {[%emt 0:00:58]} 14. Be1 {[%emt 0:27:59]} Qe7 {[%emt 0:31:06]} 15. Qc2 {[%emt 0:00:20]} c5 {[%emt 0:04:03]} 16. f3 {[%emt 0:00:27]} c4 {[%emt 0:02:13]} 17. Bxe4 {[%emt 0:13:46]} dxe4 {[%emt 0:00:07]} 18. f4 {[%emt 0:00:02]} b5 {[%emt 0:07:37]} 19. Bc3 {[%emt 0:00:39]} Rfd8 {[%emt 0:00:45]} 20. Bd4 {[%emt 0:06:20]} Bd5 {[%emt 0:04:06]} 21. Qf2 {[%emt 0:01:20]} Rac8 {[%emt 0:00:47]} 22. Qg3 {[%emt 0:00:35]} b4 {[%emt 0:01:18]} 23. f5 {[%emt 0:00:25]} Qf8 {[%emt 0:00:41]} 24. Rf4 {[%emt 0:02:02]} c3 {[%emt 0:00:40]} 25. b3 {[%emt 0:02:24]} a5 {[%emt 0:00:24]} 26. e6 {[%emt 0:08:58]} f6 {[%emt 0:00:49]} 27. Rh4 {[%emt 0:00:04]} a4 {[%emt 0:01:32]} 28. Qh3 {[%emt 0:07:27]} h6 {[%emt 0:00:11]} 29. Qg4 {[%emt 0:00:03]} Bxb3 {[%emt 0:01:56]} 30. Rxh6 {[%emt 0:02:40]} Rxd4 {[%emt 0:00:11]} 31. Qg6 {[%emt 0:04:58]} Qe8 {[%emt 0:00:40]} 32. Qh7+ {[%emt 0:00:07]} Kf8 {[%emt 0:00:01]} 33. Qh8+ {[%emt 0:00:25]} Ke7 {[%emt 0:00:05]} 34. Qxg7+ {[%emt 0:00:02]} Kd6 {[%emt 0:00:35]} 35. exd4 {[%emt 0:00:05]} Qe7 {[%emt 0:00:59]} 36. Qxe7+ Kxe7 {[%emt 0:00:02]} 37. Rh7+ {[%emt 0:10:06]} Kd6 {[%emt 0:00:49]} 38. Rd7+ {[%emt 0:00:04]} Kc6 {[%emt 0:00:04]} 39. a3 {[%emt 0:00:03]} Kb5 {[%emt 0:01:55]} 40. axb4 {[%emt 0:01:50]} Kxb4 {[%emt 0:00:39]} 41. d5 {[%emt 0:00:42]} c2 {[%emt 0:00:29]} 42. d6 {[%emt 0:00:53]} Ka3 {[%emt 0:00:36]} 43. Rc7 {[%emt 0:00:33]} Rd8 {[%emt 0:00:27]} 44. d7 {[%emt 0:00:08]} Kb2 {[%emt 0:00:24]} 45. R1xc2+ {[%emt 0:01:07]} Bxc2 {[%emt 0:00:06]} 46. e7 {[%emt 0:00:54]} 1-0

[Event "9th RTU Open 2019"]
[Site "Riga"]
[Date "2019.08.08"]
[Round "6.21"]
[White "Baskin, Robert"]
[Black "Chandra, Akshat"]
[Result "1-0"]
[ECO "C02"]
[WhiteElo "2398"]
[BlackElo "2522"]
[Annotator "ChessBase"]
[PlyCount "105"]
[EventDate "2019.08.05"]
[EventType "swiss"]
[EventCountry "LAT"]
[SourceTitle "playchess.com"]
[Source "ChessBase"]
[SourceQuality "1"]
[TimeControl "5400+30"]

1. e4 {[%emt 0:01:11]} e6 {[%emt 0:03:58]} 2. d4 {[%emt 0:00:31]} d5 {[%emt 0:00:04]} 3. e5 {[%emt 0:00:28]} c5 {[%emt 0:00:08]} 4. c3 {[%emt 0:00:05]} Nc6 {[%emt 0:00:05]} 5. Nf3 {[%emt 0:00:06]} Qb6 {[%emt 0:00:34]} 6. a3 {[%emt 0:00:08]} c4 {[%emt 0:00:08]} 7. Nbd2 {[%emt 0:00:45]} Na5 {[%emt 0:00:45]} 8. g3 {[%emt 0:00:51]} Bd7 {[%emt 0:00:26]} 9. h4 {[%emt 0:00:15]} Qc7 {[%emt 0:04:36]} 10. Bh3 {[%emt 0:01:19]} Ne7 {[%emt 0:20:16]} 11. O-O {[%emt 0:05:50]} Nc8 {[%emt 0:00:10]} 12. Ne1 {[%emt 0:04:10]} Nb6 {[%emt 0:01:32]} 13. f4 {[%emt 0:07:09]} O-O-O {[%emt 0:06:16]} 14. Rb1 {[%emt 0:02:33]} Kb8 {[%emt 0:02:41]} 15. Ndf3 {[%emt 0:04:57]} f5 {[%emt 0:04:34]} 16. g4 {[%emt 0:03:45]} g6 {[%emt 0:06:00]} 17. gxf5 {[%emt 0:07:01]} gxf5 {[%emt 0:02:40]} 18. Kh2 {[%emt 0:00:00]} Be8 {[%emt 0:01:10]} 19. Ng5 {[%emt 0:09:11]} Qe7 {[%emt 0:03:38]} 20. Qc2 {[%emt 0:00:54]} Ba4 {[%emt 0:07:18]} 21. Qe2 {[%emt 0:07:23]} h6 {[%emt 0:00:06]} 22. Ngf3 {[%emt 0:02:53]} Be8 {[%emt 0:00:53]} 23. Rg1 {[%emt 0:01:09]} Bh5 {[%emt 0:00:37]} 24. Be3 {[%emt 0:01:55]} Qf7 {[%emt 0:02:12]} 25. Nc2 {[%emt 0:08:08]} Be7 {[%emt 0:01:31]} 26. Bf2 {[%emt 0:00:44]} Nb3 {[%emt 0:02:04]} 27. Ne3 {[%emt 0:09:29]} Rhg8 {[%emt 0:05:32]} 28. Rxg8 {[%emt 0:01:38]} Rxg8 {[%emt 0:03:13]} 29. Bg2 {[%emt 0:08:37]} Rg7 {[%emt 0:12:48]} 30. Bg3 {[%emt 0:01:24]} Qg8 {[%emt 0:01:52]} 31. Qf2 {[%emt 0:00:30]} Na4 {[%emt 0:01:28]} 32. Nf1 {[%emt 0:02:13]} Bxa3 {[%emt 0:03:21]} 33. bxa3 {[%emt 0:02:11]} Nxc3 {[%emt 0:00:02]} 34. Re1 {[%emt 0:00:44]} Ne4 {[%emt 0:00:32]} 35. Rxe4 {[%emt 0:00:04]} dxe4 {[%emt 0:02:22]} 36. N3d2 {[%emt 0:00:14]} Rc7 {[%emt 0:01:52]} 37. Ne3 {[%emt 0:04:57]} Nxd2 {[%emt 0:00:18]} 38. Qxd2 {[%emt 0:00:01]} c3 {[%emt 0:00:07]} 39. Qc2 {[%emt 0:00:17]} Qd8 {[%emt 0:00:53]} 40. d5 {[%emt 0:01:12]} exd5 {[%emt 0:00:05]} 41. Nxf5 {[%emt 0:00:06]} Qf8 {[%emt 0:01:07]} 42. Nd6 {[%emt 0:01:50]} Bg4 {[%emt 0:00:34]} 43. f5 {[%emt 0:00:36]} Ka8 {[%emt 0:00:29]} 44. e6 {[%emt 0:00:35]} Rc6 {[%emt 0:00:01]} 45. Nb5 {[%emt 0:01:08]} a6 {[%emt 0:01:01]} 46. Nc7+ {[%emt 0:00:46]} Ka7 {[%emt 0:00:23]} 47. Nxd5 {[%emt 0:00:16]} Bxf5 {[%emt 0:00:30]} 48. e7 {[%emt 0:00:14]} Qc8 {[%emt 0:00:37]} 49. Qf2+ {[%emt 0:00:18]} b6 {[%emt 0:00:04]} 50. Qxf5 {[%emt 0:00:22]} c2 {[%emt 0:00:52]} 51. Qxc8 {[%emt 0:00:15]} Rxc8 {[%emt 0:00:04]} 52. Bf4 {[%emt 0:00:09]} e3 {[%emt 0:00:59]} 53. Bxe3 {[%emt 0:00:13]} 1-0

[Event "9th RTU Open 2019"]
[Site "Riga"]
[Date "2019.08.08"]
[Round "6.22"]
[White "Vishnu Prasanna. V"]
[Black "Akash G"]
[Result "1-0"]
[ECO "E94"]
[WhiteElo "2505"]
[BlackElo "2394"]
[Annotator "ChessBase"]
[PlyCount "75"]
[EventDate "2019.08.05"]
[EventType "swiss"]
[EventCountry "LAT"]
[SourceTitle "playchess.com"]
[Source "ChessBase"]
[SourceQuality "1"]
[TimeControl "5400+30"]

1. d4 {[%emt 0:00:00]} Nf6 {[%emt 0:00:00]} 2. c4 {[%emt 0:00:00]} g6 {[%emt 0:00:00]} 3. Nc3 {[%emt 0:00:00]} Bg7 {[%emt 0:00:00]} 4. e4 {[%emt 0:00:00]} d6 {[%emt 0:00:00]} 5. Be2 {[%emt 0:00:19]} O-O {[%emt 0:00:52]} 6. Bg5 {[%emt 0:00:06]} Na6 {[%emt 0:01:02]} 7. Nf3 {[%emt 0:00:13]} c6 {[%emt 0:06:03]} 8. O-O {[%emt 0:00:16]} e5 {[%emt 0:00:44]} 9. d5 {[%emt 0:01:39]} h6 {[%emt 0:02:21]} 10. Be3 {[%emt 0:00:10]} Ng4 {[%emt 0:04:47]} 11. Bc1 {[%emt 0:00:42]} f5 {[%emt 0:01:25]} 12. g3 {[%emt 0:00:54]} fxe4 {[%emt 0:13:20]} 13. Nh4 {[%emt 0:08:40]} Nf6 {[%emt 0:07:04]} 14. Nxg6 {[%emt 0:00:30]} Re8 {[%emt 0:02:25]} 15. Kh1 {[%emt 0:03:51]} Bh3 {[%emt 0:13:10]} 16. Rg1 {[%emt 0:00:45]} Bf5 {[%emt 0:03:38]} 17. Nh4 {[%emt 0:00:32]} Bh7 {[%emt 0:00:07]} 18. g4 {[%emt 0:01:37]} Nxd5 {[%emt 0:06:15]} 19. cxd5 {[%emt 0:08:33]} Qxh4 {[%emt 0:00:10]} 20. g5 {[%emt 0:00:22]} Kh8 {[%emt 0:08:05]} 21. Rg4 {[%emt 0:09:41]} Qxf2 {[%emt 0:03:11]} 22. gxh6 {[%emt 0:11:42]} Bf6 {[%emt 0:06:18]} 23. dxc6 {[%emt 0:06:42]} bxc6 {[%emt 0:02:15]} 24. Qxd6 {[%emt 0:08:37]} Rad8 {[%emt 0:01:25]} 25. Be3 {[%emt 0:01:26]} Rxd6 {[%emt 0:00:40]} 26. Bxf2 {[%emt 0:00:05]} Rd4 {[%emt 0:07:49]} 27. Rf1 {[%emt 0:03:51]} Nb4 {[%emt 0:04:00]} 28. Bxd4 {[%emt 0:03:29]} exd4 {[%emt 0:00:06]} 29. Rxf6 {[%emt 0:00:03]} dxc3 {[%emt 0:00:07]} 30. bxc3 {[%emt 0:00:09]} Nxa2 {[%emt 0:00:07]} 31. Rgf4 {[%emt 0:04:04]} Nxc3 {[%emt 0:06:25]} 32. Rf8+ {[%emt 0:00:27]} Rxf8 {[%emt 0:00:05]} 33. Rxf8+ {[%emt 0:00:03]} Bg8 {[%emt 0:00:04]} 34. Bg4 {[%emt 0:00:24]} e3 {[%emt 0:02:22]} 35. Be6 {[%emt 0:00:53]} Kh7 {[%emt 0:00:35]} 36. Bxg8+ {[%emt 0:00:13]} Kxh6 {[%emt 0:00:04]} 37. Re8 {[%emt 0:00:15]} e2 {[%emt 0:00:18]} 38. Bc4 {[%emt 0:00:05]} 1-0

[Event "9th RTU Open 2019"]
[Site "Riga"]
[Date "2019.08.08"]
[Round "6.23"]
[White "Jurcik, Marian"]
[Black "Galchenko, Matvey"]
[Result "1/2-1/2"]
[ECO "C01"]
[WhiteElo "2501"]
[BlackElo "2383"]
[Annotator "ChessBase"]
[PlyCount "41"]
[EventDate "2019.08.05"]
[EventType "swiss"]
[EventCountry "LAT"]
[SourceTitle "playchess.com"]
[Source "ChessBase"]
[SourceQuality "1"]
[TimeControl "5400+30"]

1. e4 {[%emt 0:03:26]} e6 {[%emt 0:00:00]} 2. d4 {[%emt 0:00:36]} d5 {[%emt 0:00:00]} 3. exd5 {[%emt 0:01:01]} exd5 {[%emt 0:00:00]} 4. Nf3 {[%emt 0:00:06]} Bd6 {[%emt 0:01:00]} 5. c4 {[%emt 0:00:41]} Nf6 {[%emt 0:00:22]} 6. c5 {[%emt 0:08:02]} Be7 {[%emt 0:00:04]} 7. Bd3 {[%emt 0:00:42]} b6 {[%emt 0:00:20]} 8. cxb6 {[%emt 0:02:49]} axb6 {[%emt 0:00:09]} 9. h3 {[%emt 0:01:46]} O-O {[%emt 0:00:38]} 10. O-O {[%emt 0:00:14]} c5 {[%emt 0:00:52]} 11. Nc3 {[%emt 0:00:35]} Nc6 {[%emt 0:01:18]} 12. Bg5 {[%emt 0:08:57]} Be6 {[%emt 0:04:29]} 13. a3 {[%emt 0:01:53]} h6 {[%emt 0:01:30]} 14. Be3 {[%emt 0:02:57]} Re8 {[%emt 0:10:42]} 15. Re1 {[%emt 0:10:42]} Bf8 {[%emt 0:10:49]} 16. Bb5 {[%emt 0:10:20]} Rc8 {[%emt 0:07:12]} 17. Ne5 {[%emt 0:15:10]} Bd7 {[%emt 0:02:44]} 18. Nxd7 {[%emt 0:00:22]} Qxd7 {[%emt 0:00:10]} 19. Qf3 {[%emt 0:02:58]} Re6 {[%emt 0:10:25]} 20. Rad1 {[%emt 0:04:56]} c4 {[%emt 0:02:12]} 21. Ba4 {[%emt 0:04:21]} 1/2-1/2

[Event "9th RTU Open 2019"]
[Site "Riga"]
[Date "2019.08.08"]
[Round "6.24"]
[White "Semjonovs, Ilja"]
[Black "Hirneise, Tobias"]
[Result "1/2-1/2"]
[ECO "C95"]
[WhiteElo "2380"]
[BlackElo "2459"]
[Annotator "ChessBase"]
[PlyCount "60"]
[EventDate "2019.08.05"]
[EventType "swiss"]
[EventCountry "LAT"]
[SourceTitle "playchess.com"]
[Source "ChessBase"]
[SourceQuality "1"]
[TimeControl "5400+30"]

1. e4 {[%emt 0:00:00]} e5 {[%emt 0:04:27]} 2. Nf3 {[%emt 0:00:00]} Nc6 {[%emt 0:00:13]} 3. Bb5 {[%emt 0:00:00]} a6 {[%emt 0:00:05]} 4. Ba4 {[%emt 0:00:00]} Nf6 {[%emt 0:00:20]} 5. O-O {[%emt 0:00:01]} Be7 {[%emt 0:00:02]} 6. Re1 {[%emt 0:00:08]} b5 {[%emt 0:00:05]} 7. Bb3 {[%emt 0:00:05]} d6 {[%emt 0:00:05]} 8. c3 {[%emt 0:00:41]} O-O {[%emt 0:00:14]} 9. h3 {[%emt 0:01:37]} Nb8 {[%emt 0:00:17]} 10. d4 {[%emt 0:02:01]} Nbd7 {[%emt 0:00:04]} 11. a4 {[%emt 0:02:09]} Bb7 {[%emt 0:01:03]} 12. Nbd2 {[%emt 0:00:47]} c5 {[%emt 0:01:16]} 13. Bc2 {[%emt 0:01:20]} Re8 {[%emt 0:08:43]} 14. Nf1 {[%emt 0:15:20]} Bf8 {[%emt 0:00:36]} 15. d5 {[%emt 0:01:10]} c4 {[%emt 0:00:46]} 16. Be3 {[%emt 0:02:20]} Qc7 {[%emt 0:00:56]} 17. axb5 {[%emt 0:08:37]} axb5 {[%emt 0:00:07]} 18. Qd2 {[%emt 0:00:16]} Nc5 {[%emt 0:01:24]} 19. Ng3 {[%emt 0:00:13]} Rxa1 {[%emt 0:06:49]} 20. Rxa1 {[%emt 0:06:37]} Ra8 {[%emt 0:00:04]} 21. Qd1 {[%emt 0:03:14]} Rxa1 {[%emt 0:18:25]} 22. Qxa1 {[%emt 0:00:22]} Bc8 {[%emt 0:02:05]} 23. Nd2 {[%emt 0:06:46]} g6 {[%emt 0:04:11]} 24. Qa3 {[%emt 0:04:30]} Be7 {[%emt 0:06:06]} 25. Qb4 {[%emt 0:05:14]} Bd7 {[%emt 0:02:44]} 26. b3 {[%emt 0:03:16]} cxb3 {[%emt 0:01:38]} 27. Nxb3 {[%emt 0:00:28]} Nxb3 {[%emt 0:13:59]} 28. Bxb3 {[%emt 0:03:50]} Ne8 {[%emt 0:00:52]} 29. Nf1 {[%emt 0:01:51]} Qc8 {[%emt 0:02:50]} 30. c4 {[%emt 0:04:35]} bxc4 {[%emt 0:00:45]} 1/2-1/2